[Event "4NCL Div 1 2018-19"]
[Site "Daventry"]
[Date "2018.11.10"]
[Round "1"]
[White "Bentley, John L"]
[Black "Serbanescu, Diana-Maria"]
[Result "1-0"]
[ECO "A41"]
[WhiteElo "2135"]
[BlackElo "2000"]
[Annotator "ChessBase"]
[PlyCount "99"]
[EventDate "2018.11.10"]
[EventType "team-tourn"]
[EventCountry "GBR"]
[SourceTitle "playchess.com"]
[Source "ChessBase"]
[SourceQuality "1"]
[TimeControl "40/6000+30:3000+30"]

1. d4 {[%emt 0:42:27]} d6 {[%emt 0:00:00]} 2. c4 {[%emt 0:00:08]} e5 {[%emt 0:00:00]} 3. d5 {[%emt 0:00:08]} f5 {[%emt 0:00:21]} 4. e4 {[%emt 0:00:10]} fxe4 {[%emt 0:00:51]} 5. Nc3 {[%emt 0:00:19]} Nf6 {[%emt 0:00:42]} 6. Bg5 {[%emt 0:02:01]} Nbd7 {[%emt 0:01:52]} 7. Nxe4 {[%emt 0:04:29]} Be7 {[%emt 0:01:15]} 8. Bxf6 {[%emt 0:00:18]} Nxf6 {[%emt 0:00:36]} 9. Bd3 {[%emt 0:03:02]} O-O {[%emt 0:08:31]} 10. Ne2 {[%emt 0:04:36]} Nxe4 {[%emt 0:25:41]} 11. Bxe4 {[%emt 0:00:16]} Bh4 {[%emt 0:02:03]} 12. g3 {[%emt 0:27:46]} Bf6 {[%emt 0:05:31]} 13. Qc2 {[%emt 0:00:16]} g6 {[%emt 0:02:29]} 14. h4 {[%emt 0:10:26]} Bg7 {[%emt 0:03:23]} 15. h5 {[%emt 0:00:43]} Qf6 {[%emt 0:06:26]} 16. Nc3 {[%emt 0:00:14]} Bg4 {[%emt 0:07:36]} 17. hxg6 {[%emt 0:01:51]} h5 {[%emt 0:01:04]} 18. Rh2 {[%emt 0:05:17]} a6 {[%emt 0:07:12]} 19. Kf1 {[%emt 0:03:54]} Rae8 {[%emt 0:04:30]} 20. Kg1 {[%emt 0:00:13]} Qg5 {[%emt 0:06:03]} 21. Qc1 {[%emt 0:00:39]} Qxc1+ {[%emt 0:03:46]} 22. Rxc1 {[%emt 0:00:04]} Bh6 {[%emt 0:00:18]} 23. Rf1 {[%emt 0:00:36]} Rf6 {[%emt 0:04:19]} 24. f3 {[%emt 0:00:06]} Ref8 {[%emt 0:00:31]} 25. Kg2 {[%emt 0:00:10]} Kg7 {[%emt 0:02:58]} 26. Rhh1 {[%emt 0:00:08]} Bf5 {[%emt 0:00:50]} 27. Rxh5 {[%emt 0:00:34]} Bxg6 {[%emt 0:01:53]} 28. Rh4 {[%emt 0:00:27]} Bd2 {[%emt 0:02:49]} 29. Nd1 {[%emt 0:01:47]} Bxe4 {[%emt 0:02:21]} 30. Rxe4 {[%emt 0:00:08]} Rg6 {[%emt 0:00:32]} 31. Nf2 {[%emt 0:00:40]} Bf4 {[%emt 0:02:49]} 32. Ng4 {[%emt 0:00:11]} Bd2 {[%emt 0:01:30]} 33. Rd1 {[%emt 0:00:26]} Bg5 {[%emt 0:00:14]} 34. Rd3 {[%emt 0:00:24]} Bc1 {[%emt 0:01:06]} 35. Re2 {[%emt 0:01:03]} Kf7 {[%emt 0:01:56]} 36. Rd1 {[%emt 0:00:11]} Bg5 {[%emt 0:00:22]} 37. Re4 {[%emt 0:00:40]} Kg7 {[%emt 0:01:04]} 38. b4 {[%emt 0:00:51]} b6 {[%emt 0:01:11]} 39. Rd3 {[%emt 0:00:18]} Bc1 {[%emt 0:01:07]} 40. c5 {[%emt 0:01:14]} bxc5 {[%emt 0:01:24]} 41. bxc5 {[%emt 0:50:44]} Rb8 {[%emt 0:00:58]} 42. cxd6 {[%emt 0:00:00]} Rb2+ {[%emt 0:01:40]} 43. Kf1 {[%emt 0:00:00]} cxd6 {[%emt 0:02:30]} 44. Rc4 {[%emt 0:00:00]} Bg5 {[%emt 0:01:23]} 45. Rb3 {[%emt 0:00:00]} Rxa2 {[%emt 0:02:16]} 46. Rb7+ {[%emt 0:00:00]} Kh8 {[%emt 0:02:07]} 47. Rc8+ {[%emt 0:00:00]} Rg8 {[%emt 0:00:00]} 48. Rcc7 {[%emt 0:00:00]} Ra8 {[%emt 0:00:00]} 49. Rh7+ {[%emt 0:00:00]} Kg8 {[%emt 0:00:00]} 50. Ra7 {[%emt 0:00:00]} 1-0

[Event "4NCL Div 1 2018-19"]
[Site "Daventry"]
[Date "2018.11.10"]
[Round "1"]
[White "Pedersen, Carsten"]
[Black "Ledger, Dave J"]
[Result "0-1"]
[ECO "C24"]
[WhiteElo "2130"]
[BlackElo "2237"]
[Annotator "ChessBase"]
[PlyCount "112"]
[EventDate "2018.11.10"]
[EventType "team-tourn"]
[EventCountry "GBR"]
[SourceTitle "playchess.com"]
[Source "ChessBase"]
[SourceQuality "1"]
[TimeControl "40/6000+30:3000+30"]

1. e4 {[%emt 0:00:00]} e5 {[%emt 0:00:00]} 2. Bc4 {[%emt 0:00:00]} Nf6 {[%emt 0:02:23]} 3. d3 {[%emt 0:00:00]} Bc5 {[%emt 0:00:50]} 4. Nf3 {[%emt 0:00:00]} d6 {[%emt 0:00:53]} 5. O-O {[%emt 0:04:08]} a6 {[%emt 0:03:26]} 6. a4 {[%emt 0:00:15]} Nc6 {[%emt 0:03:07]} 7. c3 {[%emt 0:08:05]} Ba7 {[%emt 0:00:55]} 8. Re1 {[%emt 0:01:36]} O-O {[%emt 0:02:10]} 9. h3 {[%emt 0:02:10]} Ne7 {[%emt 0:04:53]} 10. Nh4 {[%emt 0:22:20]} Be6 {[%emt 0:09:01]} 11. Bg5 {[%emt 0:19:07]} Bxc4 {[%emt 0:07:53]} 12. dxc4 {[%emt 0:00:08]} Ng6 {[%emt 0:11:58]} 13. Nf5 {[%emt 0:18:42]} h6 {[%emt 0:00:28]} 14. Be3 {[%emt 0:00:06]} Bxe3 {[%emt 0:01:06]} 15. Rxe3 {[%emt 0:00:08]} Nf4 {[%emt 0:01:54]} 16. Nd2 {[%emt 0:11:18]} Kh7 {[%emt 0:07:23]} 17. Nf3 {[%emt 0:01:21]} Nd7 {[%emt 0:02:34]} 18. a5 {[%emt 0:07:17]} Qf6 {[%emt 0:05:25]} 19. b4 {[%emt 0:02:20]} Qg6 {[%emt 0:06:42]} 20. N3h4 {[%emt 0:01:28]} Qe6 {[%emt 0:00:14]} 21. Qf1 {[%emt 0:01:07]} g6 {[%emt 0:04:54]} 22. Ng3 {[%emt 0:00:06]} Rg8 {[%emt 0:02:05]} 23. Nf3 {[%emt 0:04:05]} Raf8 {[%emt 0:01:39]} 24. Nd2 {[%emt 0:00:26]} f5 {[%emt 0:04:06]} 25. Ne2 {[%emt 0:00:35]} Nh5 {[%emt 0:04:04]} 26. f3 {[%emt 0:02:43]} f4 {[%emt 0:06:05]} 27. Rd3 {[%emt 0:00:02]} g5 {[%emt 0:00:36]} 28. Qb1 {[%emt 0:02:25]} Nhf6 {[%emt 0:00:21]} 29. Qa2 {[%emt 0:00:09]} h5 {[%emt 0:01:22]} 30. Kf2 {[%emt 0:01:04]} g4 {[%emt 0:02:25]} 31. hxg4 {[%emt 0:00:06]} hxg4 {[%emt 0:00:04]} 32. c5 {[%emt 0:00:22]} Qxa2 {[%emt 0:01:14]} 33. Rxa2 {[%emt 0:00:01]} dxc5 {[%emt 0:00:10]} 34. Nc4 {[%emt 0:00:22]} Rg7 {[%emt 0:01:05]} 35. Rd1 {[%emt 0:01:10]} Re8 {[%emt 0:02:22]} 36. Rb2 {[%emt 0:00:49]} cxb4 {[%emt 0:03:01]} 37. cxb4 {[%emt 0:00:09]} Re6 {[%emt 0:00:31]} 38. b5 {[%emt 0:00:42]} Nc5 {[%emt 0:01:35]} 39. Nc3 {[%emt 0:01:09]} gxf3 {[%emt 0:01:55]} 40. gxf3 {[%emt 0:00:05]} Nfd7 {[%emt 0:01:50]} 41. Rh1+ {[%emt 0:04:18]} Kg8 {[%emt 0:00:18]} 42. Rd2 {[%emt 0:01:04]} axb5 {[%emt 0:05:27]} 43. Nxb5 {[%emt 0:00:06]} Rc6 {[%emt 0:00:17]} 44. Nba3 {[%emt 0:01:54]} Rcg6 {[%emt 0:09:05]} 45. Rh2 {[%emt 0:00:36]} Rg3 {[%emt 0:01:46]} 46. Nb5 {[%emt 0:03:49]} Ne6 {[%emt 0:08:06]} 47. Rd1 {[%emt 0:02:53]} Ng5 {[%emt 0:01:07]} 48. Nd2 {[%emt 0:14:07]} Nc5 {[%emt 0:02:19]} 49. Rdh1 {[%emt 0:03:34]} Rd7 {[%emt 0:01:56]} 50. Ke1 {[%emt 0:01:31]} Kg7 {[%emt 0:01:51]} 51. Rh5 {[%emt 0:06:39]} Rg2 {[%emt 0:05:28]} 52. R1h2 {[%emt 0:00:20]} Rxh2 {[%emt 0:02:58]} 53. Rxh2 {[%emt 0:00:03]} Rxd2 {[%emt 0:00:18]} 54. Rxd2 {[%emt 0:00:33]} Nxf3+ {[%emt 0:00:04]} 55. Ke2 {[%emt 0:01:10]} Nxd2 {[%emt 0:00:07]} 56. Kxd2 {[%emt 0:00:04]} Nxe4+ {[%emt 0:00:04]} 0-1

[Event "4NCL Div 1 2018-19"]
[Site "Daventry"]
[Date "2018.11.10"]
[Round "1"]
[White "Stoeri, Laura"]
[Black "Ciuksyte, Dagne"]
[Result "1-0"]
[ECO "C06"]
[WhiteElo "2113"]
[BlackElo "2303"]
[Annotator "NA"]
[PlyCount "51"]
[EventDate "2018.11.10"]
[EventType "team-tourn"]
[EventCountry "GBR"]
[SourceTitle "playchess.com"]
[Source "ChessBase"]
[SourceQuality "1"]
[TimeControl "40/6000+30:3000+30"]

1. e4 {[%emt 0:00:00]} e6 {[%emt 0:00:00]} 2. d4 {[%emt 0:00:00]} d5 {[%emt 0:00:00]} 3. Nd2 {[%emt 0:00:00]} Nf6 {[%emt 0:00:12]} 4. e5 {[%emt 0:00:00]} Nfd7 {[%emt 0:00:14]} 5. Bd3 {[%emt 0:00:16]} c5 {[%emt 0:00:18]} 6. c3 {[%emt 0:00:04]} Nc6 {[%emt 0:00:06]} 7. Ngf3 {[%emt 0:10:05]} Be7 {[%emt 0:00:30]} 8. O-O {[%emt 0:06:20]} g5 {[%emt 0:00:38]} 9. dxc5 {[%emt 0:00:37]} g4 {[%emt 0:00:35]} 10. Nd4 {[%emt 0:14:29]} Ndxe5 {[%emt 0:00:49]} 11. N2b3 {[%emt 0:14:48]} Nxd3 {[%emt 0:23:31]} 12. Qxd3 {[%emt 0:00:08]} e5 {[%emt 0:05:09]} 13. Nxc6 $1 {[%emt 0:10:38]} bxc6 {[%emt 0:00:04]} 14. Bh6 $11 {[%emt 0:02:39] LiveBook: 8 Games} Be6 {[%emt 0:18:25]} 15. Bg7 {[%emt 0:05:33]} e4 {[%emt 0:04:32]} 16. Qa6 {[%emt 0:00:20]} Rg8 {[%emt 0:06:01]} 17. Qxc6+ {[%emt 0:01:14]} Bd7 {[%emt 0:00:04]} 18. Qh6 {[%emt 0:02:04]} Qc7 {[%emt 0:05:05]} 19. Bd4 {[%emt 0:08:20]} Be6 {[%emt 0:12:54]} 20. Qe3 {[%emt 0:08:37]} f5 {[%emt 0:02:49]} 21. Qh6 {[%emt 0:01:18]} Kd7 {[%emt 0:03:09]} 22. Qxh7 {[%emt 0:05:00]} Rgf8 {[%emt 0:07:22]} 23. Rad1 {[%emt 0:03:39]} a5 {[%emt 0:12:17]} 24. c4 {[%emt 0:02:49]} Rf7 {[%emt 0:02:22]} 25. Qg6 {[%emt 0:01:08]} Qc6 {[%emt 0:00:33]} 26. Be5 {[%emt 0:03:01]} 1-0

[Event "4NCL Div 1 2018-19"]
[Site "Daventry"]
[Date "2018.11.10"]
[Round "1"]
[White "Skulte, Christopher"]
[Black "Ledger, Andrew J"]
[Result "0-1"]
[ECO "C07"]
[WhiteElo "2110"]
[BlackElo "2348"]
[Annotator "NA"]
[PlyCount "82"]
[EventDate "2018.11.10"]
[EventType "team-tourn"]
[EventCountry "GBR"]
[SourceTitle "playchess.com"]
[Source "ChessBase"]
[SourceQuality "1"]
[TimeControl "40/6000+30:3000+30"]

1. e4 {[%emt 0:00:00]} e6 {[%emt 0:00:00]} 2. d4 {[%emt 0:00:00]} d5 {[%emt 0:00:00]} 3. Nd2 {[%emt 0:00:02]} c5 {[%emt 0:00:00]} 4. exd5 {[%emt 0:00:56]} Qxd5 {[%emt 0:00:09]} 5. Ngf3 {[%emt 0:00:47]} cxd4 {[%emt 0:00:16]} 6. Bc4 {[%emt 0:00:52]} Qd6 {[%emt 0:00:09]} 7. Qe2 {[%emt 0:01:15]} Nf6 {[%emt 0:01:34]} 8. Nb3 {[%emt 0:00:08]} Nc6 {[%emt 0:00:38]} 9. Bg5 {[%emt 0:01:44]} Qb4+ {[%emt 0:01:52] C07: French Tarrasch: 3...c5, 4 Ngf3 and 4 exd5 Qxd5} 10. Bd2 {[%emt 0:04:03]} Qb6 {[%emt 0:00:09]} 11. O-O-O {[%emt 0:00:50]} Bd7 {[%emt 0:06:46]} 12. Bg5 {[%emt 0:30:25]} Be7 {[%emt 0:10:38]} 13. Nbxd4 {[%emt 0:05:39]} O-O {[%emt 0:02:17]} 14. Rd2 $146 {[%emt 0:17:15]} ({Predecessor:} 14. Nxc6 Bxc6 15. Ne5 Be8 16. h4 Rd8 17. Ng4 {½-½ (42) Maenhout,T (2355)-Berelowitsch,A (2571) Belgium 2010}) 14... a6 {[%emt 0:21:54]} 15. Nb3 {[%emt 0:02:40]} Rfd8 {[%emt 0:05:24]} 16. Rhd1 {[%emt 0:06:16]} Qc7 {[%emt 0:04:09]} 17. Kb1 {[%emt 0:10:16]} Rac8 {[%emt 0:03:34]} 18. Bd3 {[%emt 0:03:38]} Be8 {[%emt 0:04:13]} 19. c3 {[%emt 0:00:31]} g6 {[%emt 0:09:28]} 20. g3 {[%emt 0:00:39]} b5 {[%emt 0:04:21]} 21. Nfd4 {[%emt 0:04:33]} Nxd4 {[%emt 0:03:28]} 22. Nxd4 {[%emt 0:00:27]} Nd5 {[%emt 0:02:58]} 23. Bxe7 {[%emt 0:00:40]} Qxe7 {[%emt 0:00:08]} 24. f4 {[%emt 0:02:48]} Rxc3 {[%emt 0:07:32]} 25. Bc2 {[%emt 0:06:39]} Rc7 {[%emt 0:04:58]} 26. Nf3 {[%emt 0:01:07]} Rdc8 {[%emt 0:02:38]} 27. Bb3 {[%emt 0:00:49]} Nb4 {[%emt 0:02:11]} 28. Ne5 {[%emt 0:01:09]} a5 {[%emt 0:03:21]} 29. a3 {[%emt 0:03:16]} a4 {[%emt 0:00:48]} 30. Bxe6 {[%emt 0:02:51]} Qxe6 {[%emt 0:01:48]} 31. axb4 {[%emt 0:00:22]} a3 {[%emt 0:02:35]} 32. Rd5 {[%emt 0:01:43]} a2+ {[%emt 0:01:48]} 33. Kxa2 {[%emt 0:01:18]} f6 {[%emt 0:02:19]} 34. f5 {[%emt 0:00:19]} Ra7+ {[%emt 0:01:25]} 35. Kb3 {[%emt 0:00:37]} Qa6 {[%emt 0:00:41]} 36. Rc5 {[%emt 0:00:45]} Qa4+ {[%emt 0:00:36]} 37. Kc3 {[%emt 0:00:08]} Rxc5+ {[%emt 0:00:10]} 38. bxc5 {[%emt 0:00:06]} fxe5 {[%emt 0:00:39]} 39. Qxe5 {[%emt 0:00:50]} b4+ {[%emt 0:01:04]} 40. Kd2 {[%emt 0:00:35]} Rd7+ {[%emt 0:00:33]} 41. Ke3 {[%emt 0:50:25]} Rxd1 {[%emt 0:01:22] Kd4 [%clk 00:49:59] [%emt 00:01:06]} 0-1

[Event "4NCL Div 1 2018-19"]
[Site "Daventry"]
[Date "2018.11.10"]
[Round "1"]
[White "Maroroa, Sue"]
[Black "Smith, Lynda"]
[Result "1-0"]
[ECO "B22"]
[WhiteElo "2104"]
[BlackElo "1930"]
[Annotator "NA"]
[PlyCount "101"]
[EventDate "2018.11.10"]
[EventType "team-tourn"]
[EventCountry "GBR"]
[SourceTitle "playchess.com"]
[Source "ChessBase"]
[SourceQuality "1"]
[TimeControl "40/6000+30:3000+30"]

1. e4 {[%emt 0:03:11]} c5 {[%emt 0:02:04]} 2. c3 {[%emt 0:00:07]} g6 {[%emt 0:00:18]} 3. d4 {[%emt 0:00:05]} cxd4 {[%emt 0:00:08]} 4. cxd4 {[%emt 0:00:06]} d5 {[%emt 0:00:03]} 5. e5 {[%emt 0:00:07]} Nc6 {[%emt 0:00:17]} 6. Nc3 {[%emt 0:00:19]} Bg7 {[%emt 0:00:20]} 7. h3 {[%emt 0:00:09]} Nh6 {[%emt 0:00:34] B22: Sicilian: 2 c3} 8. g4 {[%emt 0:00:20]} f6 {[%emt 0:06:58]} 9. f4 {[%emt 0:00:06]} fxe5 {[%emt 0:05:59]} 10. fxe5 {[%emt 0:00:09]} O-O {[%emt 0:01:59]} 11. Bg2 {[%emt 0:00:11]} e6 {[%emt 0:01:44]} 12. Nf3 {[%emt 0:00:07]} b6 $146 {[%emt 0:06:14]} ({Predecessor:} 12... Nf7 13. O-O b6 14. Be3 Ba6 15. Rf2 {½-½ (56) Sveshnikov,V (2394)-Kulaots,K (2560) Tallinn 2014}) 13. O-O {[%emt 0:09:10]} Ba6 {[%emt 0:01:23]} 14. Rf2 {[%emt 0:01:11]} Qd7 {[%emt 0:01:50]} 15. Be3 {[%emt 0:02:44]} Na5 {[%emt 0:04:01]} 16. b3 {[%emt 0:09:59]} Rac8 {[%emt 0:03:54]} 17. Qd2 {[%emt 0:02:41]} Nf7 {[%emt 0:00:39]} 18. Bf1 {[%emt 0:04:51]} Bxf1 {[%emt 0:00:59]} 19. Raxf1 {[%emt 0:00:05]} Nc6 {[%emt 0:07:49]} 20. Ne1 {[%emt 0:02:15]} Qd8 {[%emt 0:06:57]} 21. Nf3 {[%emt 0:02:01]} a5 {[%emt 0:09:15]} 22. Na4 {[%emt 0:06:11]} Qc7 {[%emt 0:06:54]} 23. Rc1 {[%emt 0:02:16]} Rb8 {[%emt 0:10:02]} 24. Qe2 {[%emt 0:05:00]} Rfc8 {[%emt 0:03:20]} 25. Qb5 {[%emt 0:01:11]} Nfd8 {[%emt 0:02:07]} 26. Rfc2 {[%emt 0:05:29]} h6 {[%emt 0:04:03]} 27. Kg2 {[%emt 0:08:44]} g5 {[%emt 0:02:26]} 28. Bd2 {[%emt 0:12:19]} Qb7 {[%emt 0:06:20]} 29. Be1 {[%emt 0:09:21]} Bf8 {[%emt 0:02:09]} 30. h4 {[%emt 0:00:36]} Ba3 {[%emt 0:01:13]} 31. Rd1 {[%emt 0:00:46]} Nf7 {[%emt 0:01:26]} 32. Qd3 {[%emt 0:01:43]} Ne7 {[%emt 0:01:20]} 33. Rf2 {[%emt 0:00:10]} Rf8 {[%emt 0:01:23]} 34. hxg5 {[%emt 0:00:53]} Nxg5 {[%emt 0:01:53]} 35. Nxg5 {[%emt 0:00:51]} hxg5 {[%emt 0:00:24]} 36. Rf6 {[%emt 0:04:28]} b5 {[%emt 0:04:15]} 37. Nc3 {[%emt 0:06:46]} Qd7 {[%emt 0:01:59]} 38. Bd2 {[%emt 0:00:23]} Rxf6 {[%emt 0:02:03]} 39. exf6 {[%emt 0:00:25]} e5 {[%emt 0:01:21]} 40. fxe7 {[%emt 0:00:54]} Qxg4+ {[%emt 0:00:42]} 41. Qg3 {[%emt 0:50:07]} Qxg3+ {[%emt 0:03:44]} 42. Kxg3 {[%emt 0:00:00]} Bxe7 {[%emt 0:00:33]} 43. dxe5 {[%emt 0:00:00]} d4 {[%emt 0:01:17]} 44. Nd5 {[%emt 0:00:00]} Bd8 {[%emt 0:01:18]} 45. Kg4 {[%emt 0:00:00]} a4 {[%emt 0:00:37]} 46. Bxg5 {[%emt 0:00:00]} axb3 $18 {[%emt 0:01:02]} 47. axb3 {[%emt 0:00:00]} Bxg5 {[%emt 0:02:00]} 48. Kxg5 {[%emt 0:00:00]} Kf7 {[%emt 0:00:28]} 49. Kf5 {[%emt 0:00:00]} Rh8 {[%emt 0:00:38]} 50. e6+ {[%emt 0:00:00]} Ke8 {[%emt 0:00:22]} 51. Nf6+ {[%emt 0:00:00]} 1-0

[Event "4NCL Div 1 2018-19"]
[Site "Daventry"]
[Date "2018.11.10"]
[Round "1"]
[White "Lauterbach, Ingrid"]
[Black "Redmond, John P."]
[Result "0-1"]
[ECO "A34"]
[WhiteElo "2027"]
[BlackElo "2175"]
[Annotator "NA"]
[PlyCount "136"]
[EventDate "2018.11.10"]
[EventType "team-tourn"]
[EventCountry "GBR"]
[SourceTitle "playchess.com"]
[Source "ChessBase"]
[SourceQuality "1"]
[TimeControl "40/6000+30:3000+30"]

1. Nf3 {[%emt 0:00:00]} Nf6 {[%emt 0:00:00]} 2. g3 {[%emt 0:00:00]} c5 {[%emt 0:00:01]} 3. Bg2 {[%emt 0:01:27]} Nc6 {[%emt 0:00:11]} 4. c4 {[%emt 0:04:00]} d5 {[%emt 0:07:20]} 5. cxd5 {[%emt 0:03:00]} Nxd5 {[%emt 0:00:04]} 6. O-O {[%emt 0:00:18]} e5 {[%emt 0:03:46]} 7. d3 {[%emt 0:00:59]} Be7 {[%emt 0:01:19]} 8. Nc3 {[%emt 0:12:31]} Nc7 {[%emt 0:06:03]} 9. b3 {[%emt 0:06:49]} O-O {[%emt 0:01:03]} 10. Bb2 {[%emt 0:00:38]} Re8 {[%emt 0:07:49] A34: Englische Eröffnung (Symmetrische Variante)} (10... Be6 11. Rc1 f6 12. e3 Qd7 13. Qe2 Rfd8 14. Rfd1 Rac8 15. Ne4 Na6 16. Rd2 Kh8 17. Rcd1 Bg4 18. Qf1 f5 19. Nc3 Bf6 {0-1 (36) Iturrizaga Bonelli,E (2636)-Vidit,S (2711) chess.com INT 2018}) 11. Rc1 {[%emt 0:03:50]} Bf8 {[%emt 0:02:05]} 12. Na4 {[%emt 0:09:39]} b6 $146 {[%emt 0:07:31]} ({Vorgänger:} 12... Na6 13. Qd2 Bd7 14. Rfd1 Rb8 15. e3 f6 16. Nc3 Bg4 17. h3 Bh5 18. Ne2 {0-1 (69) Kovacs,D (2024)-Vargyas,Z (2106) Hungary 2009}) 13. a3 {[%emt 0:09:46]} Bd7 {[%emt 0:09:56]} 14. Nd2 {[%emt 0:05:35]} Rc8 {[%emt 0:05:55]} 15. b4 {[%emt 0:04:36]} Nd4 {[%emt 0:01:29]} 16. Bxd4 {[%emt 0:07:31]} cxd4 {[%emt 0:00:45]} 17. f4 {[%emt 0:00:51]} exf4 {[%emt 0:06:14]} 18. Rxf4 {[%emt 0:01:16]} Ne6 {[%emt 0:01:23]} 19. Rxc8 {[%emt 0:03:00]} Qxc8 {[%emt 0:00:19]} 20. Rf2 {[%emt 0:01:55]} b5 {[%emt 0:04:21]} 21. Nc5 {[%emt 0:02:28]} Nxc5 {[%emt 0:00:20]} 22. bxc5 {[%emt 0:00:06]} Qxc5 {[%emt 0:01:50]} 23. Ne4 {[%emt 0:05:47]} Qe5 {[%emt 0:01:50]} 24. Qa1 {[%emt 0:04:12]} Be6 {[%emt 0:07:33]} 25. e3 {[%emt 0:04:25]} Rd8 {[%emt 0:01:24]} 26. Rf4 {[%emt 0:02:51]} Kh8 {[%emt 0:05:15]} 27. Kh1 {[%emt 0:01:36]} Be7 {[%emt 0:10:27]} 28. Qb2 {[%emt 0:11:51]} a6 {[%emt 0:02:09]} 29. h4 {[%emt 0:01:24]} f6 {[%emt 0:01:26]} 30. exd4 {[%emt 0:00:54]} Qxd4 {[%emt 0:01:16]} 31. Nc3 {[%emt 0:00:47]} Qd7 {[%emt 0:04:52]} 32. d4 {[%emt 0:00:34]} Bd6 {[%emt 0:00:20]} 33. Rf3 {[%emt 0:00:22]} Bh3 {[%emt 0:04:23]} 34. Ne4 {[%emt 0:00:37]} Bf8 {[%emt 0:01:36]} 35. Rd3 {[%emt 0:00:47]} Bxg2+ {[%emt 0:00:48]} 36. Qxg2 {[%emt 0:00:30]} Qd5 {[%emt 0:00:24]} 37. Nf2 {[%emt 0:00:27]} Kg8 {[%emt 0:01:09]} 38. Qxd5+ {[%emt 0:00:24]} Rxd5 {[%emt 0:00:07]} 39. Ne4 {[%emt 0:00:17]} b4 {[%emt 0:01:59]} 40. axb4 {[%emt 0:00:38]} Bxb4 {[%emt 0:00:09]} 41. Kg2 {[%emt 0:50:58]} a5 {[%emt 0:52:53]} 42. Kf3 {[%emt 0:00:00]} Kf7 {[%emt 0:00:00]} 43. Nd2 {[%emt 0:00:00]} Bxd2 {[%emt 0:00:00]} 44. Rxd2 {[%emt 0:00:00]} a4 {[%emt 0:00:00]} 45. Ke4 {[%emt 0:00:00]} Ra5 {[%emt 0:00:00]} 46. d5 {[%emt 0:00:00]} a3 {[%emt 0:00:00]} 47. Ra2 {[%emt 0:00:00]} Ke7 {[%emt 0:00:00]} 48. Kd4 {[%emt 0:00:00]} Kd6 {[%emt 0:00:00]} 49. Kc4 {[%emt 0:00:00]} h5 {[%emt 0:00:00]} 50. Kb4 {[%emt 0:00:00]} Ra8 {[%emt 0:00:00]} 51. Kc4 {[%emt 0:00:00]} Ra7 {[%emt 0:00:00]} 52. Kb3 {[%emt 0:00:00]} Kxd5 {[%emt 0:00:00]} 53. Rd2+ {[%emt 0:00:00]} Ke4 {[%emt 0:00:00]} 54. Ka2 {[%emt 0:00:00]} Kf3 {[%emt 0:00:00]} 55. Rd3+ {[%emt 0:00:00]} Kg4 {[%emt 0:00:00]} 56. Rc3 {[%emt 0:00:00]} g5 {[%emt 0:00:00]} 57. hxg5 {[%emt 0:00:00]} fxg5 {[%emt 0:00:00]} 58. Rd3 {[%emt 0:00:00]} h4 {[%emt 0:00:00]} 59. gxh4 {[%emt 0:00:00]} Kxh4 {[%emt 0:00:00]} 60. Rd8 {[%emt 0:00:00]} g4 {[%emt 0:00:00]} 61. Rh8+ {[%emt 0:00:00]} Kg3 {[%emt 0:00:00]} 62. Rg8 {[%emt 0:00:00]} Kf3 {[%emt 0:00:00]} 63. Rg6 {[%emt 0:00:00]} g3 {[%emt 0:00:00]} 64. Rf6+ {[%emt 0:00:00]} Kg2 {[%emt 0:00:00]} 65. Rc6 {[%emt 0:00:00]} Kg1 {[%emt 0:00:00]} 66. Rg6 {[%emt 0:00:00]} g2 {[%emt 0:00:00]} 67. Rc6 {[%emt 0:00:00]} Rg7 {[%emt 0:00:00]} 68. Kxa3 {[%emt 0:00:00]} Kf2 {[%emt 0:00:00]} 0-1

[Event "4NCL Div 1 2018-19"]
[Site "Daventry"]
[Date "2018.11.10"]
[Round "1"]
[White "Guha, Chirag"]
[Black "Walton, Alan J"]
[Result "0-1"]
[ECO "A96"]
[WhiteElo "2012"]
[BlackElo "2140"]
[Annotator "NA"]
[PlyCount "62"]
[EventDate "2018.11.10"]
[EventType "team-tourn"]
[EventCountry "GBR"]
[SourceTitle "playchess.com"]
[Source "ChessBase"]
[SourceQuality "1"]
[TimeControl "40/6000+30:3000+30"]

1. d4 {[%emt 0:00:00]} e6 {[%emt 0:00:00]} 2. c4 {[%emt 0:00:00]} f5 {[%emt 0:00:54]} 3. g3 {[%emt 0:00:00]} Nf6 {[%emt 0:00:15]} 4. Bg2 {[%emt 0:00:04]} Be7 {[%emt 0:00:55]} 5. Nf3 {[%emt 0:00:27]} d6 {[%emt 0:01:07]} 6. O-O {[%emt 0:00:11]} O-O {[%emt 0:00:17]} 7. Nc3 {[%emt 0:04:12]} Ne4 {[%emt 0:01:06]} 8. Qc2 {[%emt 0:12:06]} Nxc3 {[%emt 0:01:02]} 9. bxc3 {[%emt 0:02:29]} Nc6 {[%emt 0:01:35]} 10. Rd1 {[%emt 0:13:07]} Qe8 {[%emt 0:01:56]} 11. d5 {[%emt 0:12:59]} Na5 {[%emt 0:00:06]} 12. dxe6 {[%emt 0:12:33]} Bxe6 {[%emt 0:01:24]} 13. Nd4 {[%emt 0:00:54]} Bxc4 {[%emt 0:09:35]} 14. e4 {[%emt 0:05:19]} fxe4 {[%emt 0:08:48]} 15. Bxe4 {[%emt 0:00:27]} Qh5 {[%emt 0:02:45]} 16. Nf5 {[%emt 0:08:04]} Rae8 $17 {[%emt 0:03:42]} 17. Bd5+ {[%emt 0:09:00]} Kh8 {[%emt 0:00:08]} 18. Ne3 {[%emt 0:07:49]} Ba6 {[%emt 0:03:37]} 19. Qa4 {[%emt 0:11:14]} b6 {[%emt 0:02:30]} 20. Bd2 {[%emt 0:04:24]} Qe2 {[%emt 0:01:08]} 21. Be1 {[%emt 0:00:14]} Bg5 {[%emt 0:00:25]} 22. Rd2 {[%emt 0:00:40]} Qh5 {[%emt 0:00:11]} 23. Qd4 {[%emt 0:02:59]} c5 {[%emt 0:02:04]} 24. Qa4 {[%emt 0:01:08]} Rxe3 {[%emt 0:00:23]} 25. fxe3 {[%emt 0:01:17]} Bxe3+ {[%emt 0:00:06]} 26. Bf2 {[%emt 0:00:21]} Bxd2 {[%emt 0:00:25]} 27. c4 {[%emt 0:00:29]} Qe2 {[%emt 0:01:03]} 28. Rf1 {[%emt 0:00:35]} Be3 {[%emt 0:00:08]} 29. Bf7 {[%emt 0:00:42]} Bb7 {[%emt 0:00:37]} 30. Qd7 {[%emt 0:00:29]} Qf3 {[%emt 0:00:10]} 31. Bd5 {[%emt 0:00:21]} Bxf2+ {[%emt 0:00:05]} 0-1